[Event "IIFL Wealth 4th Mumbai GM"]
[Site "Mumbai"]
[Date "2019.01.05"]
[Round "7"]
[White "Triton, Maxime"]
[Black "Laoussing, Mathis"]
[Result "1-0"]
[ECO "B01"]
[WhiteElo "1937"]
[BlackElo "1438"]
[Annotator "NA"]
[PlyCount "91"]
[EventDate "2018.12.30"]
[EventType "swiss"]
[EventCountry "IND"]
[SourceTitle "playchess.com"]
[Source "ChessBase"]
[SourceQuality "1"]
[TimeControl "40/5400+30:1800+30"]

1. e4 {[%emt 0:00:00]} d5 {[%emt 0:00:49]} 2. exd5 {[%emt 0:00:00]} Nf6 {[%emt 0:00:16]} 3. Be2 {[%emt 0:00:00]} Nxd5 {[%emt 0:00:34]} 4. d4 {[%emt 0:00:00]} Bf5 {[%emt 0:00:50]} 5. Nf3 {[%emt 0:00:00]} e6 {[%emt 0:00:15]} 6. O-O {[%emt 0:00:00]} Be7 {[%emt 0:00:11]} 7. a3 {[%emt 0:00:00]} O-O {[%emt 0:00:10]} 8. c4 {[%emt 0:00:00]} Nf6 {[%emt 0:00:23]} 9. Nc3 {[%emt 0:00:00]} c5 {[%emt 0:03:19]} 10. dxc5 {[%emt 0:00:00]} Bxc5 {[%emt 0:00:20]} 11. b4 {[%emt 0:00:00]} Be7 {[%emt 0:01:12]} 12. Qb3 {[%emt 0:00:27]} Nc6 {[%emt 0:01:16]} 13. Rd1 {[%emt 0:00:09]} Qc7 {[%emt 0:00:13]} 14. Nb5 {[%emt 0:06:21]} Qb8 {[%emt 0:02:44]} 15. h3 {[%emt 0:07:43]} a6 {[%emt 0:00:55]} 16. Nc3 {[%emt 0:05:23]} Rd8 {[%emt 0:00:25]} 17. Be3 {[%emt 0:02:29]} Qc7 {[%emt 0:00:29]} 18. c5 {[%emt 0:29:21]} Ne4 {[%emt 0:06:03]} 19. Nxe4 {[%emt 0:12:17]} Bxe4 {[%emt 0:00:27]} 20. Nd2 {[%emt 0:00:15]} Bd5 {[%emt 0:01:15]} 21. Bc4 {[%emt 0:00:44]} Bf6 {[%emt 0:00:11]} 22. Rab1 {[%emt 0:02:19]} Ne5 {[%emt 0:02:02]} 23. Bxd5 {[%emt 0:00:45]} Rxd5 {[%emt 0:01:36]} 24. Ne4 {[%emt 0:03:17]} Rad8 {[%emt 0:01:09]} 25. Rxd5 {[%emt 0:02:28]} Rxd5 {[%emt 0:00:35]} 26. Nxf6+ {[%emt 0:00:16]} gxf6 {[%emt 0:00:57]} 27. Bf4 {[%emt 0:00:36]} Qd7 {[%emt 0:00:58]} 28. Qg3+ {[%emt 0:00:48]} Ng6 {[%emt 0:00:37]} 29. Bd6 {[%emt 0:03:46]} Rg5 {[%emt 0:04:55]} 30. Qh2 {[%emt 0:06:18]} Qc6 {[%emt 0:00:34]} 31. f4 {[%emt 0:03:21]} Qe4 {[%emt 0:07:42]} 32. Rf1 {[%emt 0:01:24]} Rd5 {[%emt 0:00:13]} 33. Qg3 {[%emt 0:03:23]} f5 {[%emt 0:01:19]} 34. Re1 {[%emt 0:05:05]} Rd3 {[%emt 0:01:40]} 35. Qf2 {[%emt 0:01:31]} Qd4 {[%emt 0:01:30]} 36. Qxd4 {[%emt 0:01:42]} Rxd4 {[%emt 0:00:06]} 37. Re3 {[%emt 0:02:42]} Nxf4 {[%emt 0:01:41]} 38. Bxf4 {[%emt 0:00:16]} Rxf4 {[%emt 0:00:18]} 39. Rd3 {[%emt 0:00:04]} e5 {[%emt 0:00:19]} 40. Rd7 {[%emt 0:00:00]} e4 {[%emt 0:00:00]} 41. Rxb7 {[%emt 0:03:56]} Kf8 {[%emt 0:04:35]} 42. c6 {[%emt 0:02:20]} Ke8 {[%emt 0:00:09]} 43. Rb8+ {[%emt 0:00:07]} Ke7 {[%emt 0:00:13]} 44. c7 {[%emt 0:00:01]} e3 {[%emt 0:00:33]} 45. c8=Q {[%emt 0:00:22]} e2 {[%emt 0:00:48]} 46. Qe8+ {[%emt 0:00:12] Kxe8 Rb7 Kf8} 1-0

[Event "IIFL Wealth 4th Mumbai GM"]
[Site "Mumbai"]
[Date "2019.01.05"]
[Round "7"]
[White "Nepal, Prakash"]
[Black "Surendran N"]
[Result "0-1"]
[ECO "E46"]
[WhiteElo "1902"]
[BlackElo "2176"]
[Annotator "NA"]
[PlyCount "38"]
[EventDate "2018.12.30"]
[EventType "swiss"]
[EventCountry "IND"]
[SourceTitle "playchess.com"]
[Source "ChessBase"]
[SourceQuality "1"]
[TimeControl "40/5400+30:1800+30"]

1. d4 {[%emt 0:00:00]} Nf6 {[%emt 0:00:00]} 2. c4 {[%emt 0:00:00]} e6 {[%emt 0:00:00]} 3. Nc3 {[%emt 0:00:00]} Bb4 {[%emt 0:00:00]} 4. e3 {[%emt 0:00:00]} O-O {[%emt 0:00:00]} 5. Nge2 {[%emt 0:00:02]} d5 {[%emt 0:00:00]} 6. a3 {[%emt 0:00:07]} Be7 {[%emt 0:00:33]} 7. cxd5 {[%emt 0:00:43]} exd5 {[%emt 0:00:02]} 8. Nf4 {[%emt 0:00:09]} Na6 {[%emt 0:01:27]} 9. b4 {[%emt 0:04:27]} c6 {[%emt 0:00:14]} 10. Bd3 {[%emt 0:00:20]} Nc7 {[%emt 0:00:40]} 11. O-O {[%emt 0:00:56]} Ne6 {[%emt 0:01:37]} 12. Nfe2 {[%emt 0:11:06]} Bd6 {[%emt 0:03:10]} 13. Ng3 {[%emt 0:00:31]} Re8 {[%emt 0:00:52]} 14. Nh5 {[%emt 0:06:44]} Ng5 {[%emt 0:08:39]} 15. Nxf6+ {[%emt 0:01:42]} Qxf6 {[%emt 0:00:06]} 16. Qc2 {[%emt 0:05:01]} Nf3+ {[%emt 0:06:40]} 17. gxf3 {[%emt 0:01:26]} Qg5+ {[%emt 0:00:05]} 18. Kh1 {[%emt 0:00:34]} Qh5 {[%emt 0:00:04]} 19. Bxh7+ {[%emt 0:28:59]} Kf8 {[%emt 0:00:06]} 0-1

[Event "IIFL Wealth 4th Mumbai GM"]
[Site "Mumbai"]
[Date "2019.01.05"]
[Round "7"]
[White "Bhasima, Prashan"]
[Black "Snehal, Bhosale"]
[Result "0-1"]
[ECO "B38"]
[WhiteElo "1658"]
[BlackElo "2135"]
[Annotator "NA"]
[PlyCount "120"]
[EventDate "2018.12.30"]
[EventType "swiss"]
[EventCountry "IND"]
[SourceTitle "playchess.com"]
[Source "ChessBase"]
[SourceQuality "1"]
[TimeControl "40/5400+30:1800+30"]

1. e4 {[%emt 0:00:00]} c5 {[%emt 0:00:00]} 2. c4 {[%emt 0:00:08]} Nc6 {[%emt 0:00:24]} 3. Nf3 {[%emt 0:00:08]} g6 {[%emt 0:00:16]} 4. d4 {[%emt 0:00:25]} cxd4 {[%emt 0:00:28]} 5. Nxd4 {[%emt 0:00:02]} Bg7 {[%emt 0:00:22]} 6. Be3 {[%emt 0:00:29]} Nf6 {[%emt 0:01:22]} 7. Nc3 {[%emt 0:00:52]} d6 {[%emt 0:00:44]} 8. Be2 {[%emt 0:01:13]} O-O {[%emt 0:03:41]} 9. O-O {[%emt 0:03:46]} Bd7 {[%emt 0:01:57]} 10. Qd2 {[%emt 0:11:37]} Ng4 {[%emt 0:06:17]} 11. Nxc6 {[%emt 0:02:37]} bxc6 {[%emt 0:01:00]} 12. Bxg4 {[%emt 0:00:12]} Bxg4 {[%emt 0:00:14]} 13. Bh6 {[%emt 0:00:20]} Qa5 {[%emt 0:32:13]} 14. Bxg7 {[%emt 0:03:15]} Kxg7 {[%emt 0:00:53]} 15. Kh1 {[%emt 0:01:38]} Rfd8 {[%emt 0:04:25]} 16. f3 {[%emt 0:02:48]} Be6 {[%emt 0:01:21]} 17. Rfd1 {[%emt 0:00:42]} Rd7 {[%emt 0:13:50]} 18. Qd4+ {[%emt 0:18:33]} Kg8 {[%emt 0:00:29]} 19. b3 {[%emt 0:06:18]} Rad8 {[%emt 0:15:38]} 20. Rd2 {[%emt 0:03:24]} d5 {[%emt 0:03:49]} 21. exd5 {[%emt 0:00:49]} cxd5 {[%emt 0:00:02]} 22. c5 {[%emt 0:00:33]} Rb7 {[%emt 0:00:52]} 23. Rad1 {[%emt 0:13:04]} Rc8 {[%emt 0:03:30]} 24. Nxd5 {[%emt 0:05:01]} Qxc5 {[%emt 0:00:34]} 25. Qe4 {[%emt 0:08:34]} Rd7 {[%emt 0:02:37]} 26. h3 {[%emt 0:04:28]} Bxd5 {[%emt 0:04:59]} 27. Rxd5 {[%emt 0:01:07]} Rxd5 {[%emt 0:00:02]} 28. Qxd5 {[%emt 0:01:14]} Qf2 {[%emt 0:00:49]} 29. a4 {[%emt 0:01:31]} h5 {[%emt 0:00:54]} 30. Qd4 {[%emt 0:00:54]} Qc2 {[%emt 0:00:23]} 31. Qd3 {[%emt 0:00:25]} Qb2 {[%emt 0:00:36]} 32. Qd4 {[%emt 0:03:42]} Qxb3 {[%emt 0:00:29]} 33. Rd3 {[%emt 0:01:38]} Qc2 {[%emt 0:00:33]} 34. Rd2 {[%emt 0:00:23]} Qc4 {[%emt 0:00:30]} 35. Qd7 {[%emt 0:03:06]} h4 {[%emt 0:00:21]} 36. Rd1 {[%emt 0:00:33]} Rc7 {[%emt 0:00:23]} 37. Qd8+ {[%emt 0:01:09]} Kg7 {[%emt 0:00:03]} 38. Qd4+ {[%emt 0:00:09]} f6 {[%emt 0:01:22]} 39. Kh2 {[%emt 0:00:57]} g5 {[%emt 0:00:21]} 40. Kg1 {[%emt 0:00:00]} Qxd4+ {[%emt 0:00:00]} 41. Rxd4 {[%emt 0:01:02]} Rc1+ {[%emt 0:02:43]} 42. Kh2 {[%emt 0:05:31]} Ra1 {[%emt 0:00:35]} 43. Re4 {[%emt 0:00:26]} e5 {[%emt 0:00:34]} 44. Rc4 {[%emt 0:00:12]} a5 {[%emt 0:00:29]} 45. g4 {[%emt 0:05:38]} Kf7 {[%emt 0:03:49]} 46. Rc7+ {[%emt 0:02:10]} Ke6 {[%emt 0:00:27]} 47. Rc6+ {[%emt 0:01:11]} Ke7 {[%emt 0:00:40]} 48. Rc4 {[%emt 0:00:46]} Kd6 {[%emt 0:00:11]} 49. Kg2 {[%emt 0:00:31]} Kd5 {[%emt 0:00:46]} 50. Re4 {[%emt 0:00:14]} Rd1 {[%emt 0:00:17]} 51. Re2 {[%emt 0:00:41]} Rd4 {[%emt 0:00:52]} 52. Ra2 {[%emt 0:00:10]} Kc4 {[%emt 0:02:46]} 53. Rc2+ {[%emt 0:00:18]} Kb3 {[%emt 0:02:10]} 54. Rc6 {[%emt 0:00:49]} Rf4 {[%emt 0:00:21]} 55. Rb6+ {[%emt 0:02:41]} Kxa4 {[%emt 0:00:24]} 56. Rb8 {[%emt 0:00:36]} Rb4 {[%emt 0:00:22]} 57. Rf8 {[%emt 0:00:04]} Rb6 {[%emt 0:00:07]} 58. Kf2 {[%emt 0:01:26]} Kb3 {[%emt 0:00:11]} 59. Ke3 {[%emt 0:02:14]} a4 {[%emt 0:00:23]} 60. Rb8 {[%emt 0:00:14]} Rxb8 {[%emt 0:00:05] Kd4} 0-1

[Event "IIFL Wealth 4th Mumbai GM"]
[Site "Mumbai"]
[Date "2019.01.05"]
[Round "7"]
[White "Regmi, Shikhar"]
[Black "Larmet, Nino"]
[Result "0-1"]
[ECO "C50"]
[WhiteElo "1610"]
[BlackElo "1835"]
[Annotator "NA"]
[PlyCount "136"]
[EventDate "2018.12.30"]
[EventType "swiss"]
[EventCountry "IND"]
[SourceTitle "playchess.com"]
[Source "ChessBase"]
[SourceQuality "1"]
[TimeControl "40/5400+30:1800+30"]

1. e4 {[%emt 0:00:00]} e5 {[%emt 0:00:30]} 2. Nc3 {[%emt 0:00:00]} Nc6 {[%emt 0:00:45]} 3. Nf3 {[%emt 0:00:24]} Nf6 {[%emt 0:00:47]} 4. Bc4 {[%emt 0:00:41]} Bc5 {[%emt 0:01:49]} 5. O-O {[%emt 0:00:15]} d6 {[%emt 0:01:10]} 6. h3 {[%emt 0:00:17]} O-O {[%emt 0:00:04]} 7. a3 {[%emt 0:00:44]} Be6 {[%emt 0:00:42]} 8. Be2 {[%emt 0:00:38]} Nd4 {[%emt 0:00:25]} 9. d3 {[%emt 0:00:24]} Nxe2+ {[%emt 0:01:15]} 10. Qxe2 {[%emt 0:00:31]} h6 {[%emt 0:00:41]} 11. Be3 {[%emt 0:00:23]} Bb6 {[%emt 0:00:49]} 12. Kh1 {[%emt 0:01:15]} c6 {[%emt 0:01:32]} 13. Nh2 {[%emt 0:02:59]} Bd7 {[%emt 0:14:57]} 14. f4 {[%emt 0:00:32]} Bxe3 {[%emt 0:00:35]} 15. Qxe3 {[%emt 0:00:22]} Nh5 {[%emt 0:00:38]} 16. fxe5 {[%emt 0:00:25]} dxe5 {[%emt 0:00:40]} 17. Ne2 {[%emt 0:00:39]} Qh4 {[%emt 0:07:00]} 18. g4 {[%emt 0:02:23]} Nf6 {[%emt 0:01:40]} 19. Kg2 {[%emt 0:01:32]} Nh7 {[%emt 0:00:49]} 20. Qg3 {[%emt 0:02:26]} Qxg3+ {[%emt 0:01:08]} 21. Nxg3 {[%emt 0:00:33]} g6 {[%emt 0:00:03]} 22. Nf3 {[%emt 0:00:25]} Rfe8 {[%emt 0:01:28]} 23. Rf2 {[%emt 0:01:37]} Re7 {[%emt 0:02:43]} 24. Raf1 {[%emt 0:00:12]} Ng5 {[%emt 0:01:54]} 25. Nxg5 {[%emt 0:00:46]} hxg5 {[%emt 0:00:01]} 26. Ne2 {[%emt 0:00:23]} Rf8 {[%emt 0:00:30]} 27. Rf6 {[%emt 0:00:42]} Re6 {[%emt 0:00:21]} 28. Rxe6 {[%emt 0:01:15]} Bxe6 {[%emt 0:01:10]} 29. Kg3 {[%emt 0:00:10]} Kg7 {[%emt 0:02:00]} 30. b4 {[%emt 0:00:20]} Rd8 {[%emt 0:00:48]} 31. a4 {[%emt 0:02:31]} b6 {[%emt 0:01:03]} 32. Rb1 {[%emt 0:02:25]} Rc8 {[%emt 0:03:08]} 33. a5 {[%emt 0:01:06]} Rb8 {[%emt 0:01:28]} 34. Nc3 {[%emt 0:01:46]} bxa5 {[%emt 0:07:40]} 35. bxa5 {[%emt 0:00:04]} Rxb1 {[%emt 0:00:01]} 36. Nxb1 {[%emt 0:00:09]} Kf6 37. c3 {[%emt 0:00:37]} c5 {[%emt 0:01:48]} 38. Kf3 {[%emt 0:01:14]} Ke7 {[%emt 0:00:11]} 39. Na3 {[%emt 0:00:25]} a6 {[%emt 0:00:13]} 40. Ke3 {[%emt 0:00:00]} Kd7 {[%emt 0:00:00]} 41. d4 {[%emt 0:01:33]} exd4+ {[%emt 0:04:32]} 42. cxd4 {[%emt 0:00:06]} cxd4+ {[%emt 0:00:03]} 43. Kxd4 {[%emt 0:00:11]} f5 {[%emt 0:00:20]} 44. exf5 {[%emt 0:00:22]} gxf5 {[%emt 0:00:04]} 45. gxf5 {[%emt 0:01:06]} Bxf5 {[%emt 0:01:47]} 46. Nc4 {[%emt 0:00:30]} Bxh3 {[%emt 0:01:13]} 47. Kc5 {[%emt 0:00:12]} Bf1 {[%emt 0:02:11]} 48. Ne3 {[%emt 0:00:39]} Be2 {[%emt 0:02:42]} 49. Kd5 {[%emt 0:00:59]} Bf3+ {[%emt 0:06:56]} 50. Kc5 {[%emt 0:01:32]} Kc7 {[%emt 0:00:38]} 51. Nf5 {[%emt 0:01:03]} g4 {[%emt 0:06:19]} 52. Ng3 {[%emt 0:00:30]} Bb7 {[%emt 0:01:00]} 53. Nh5 {[%emt 0:00:31]} Bc8 {[%emt 0:01:23]} 54. Ng3 {[%emt 0:00:27]} Kd7 {[%emt 0:00:40]} 55. Kb6 {[%emt 0:00:21]} Ke7 {[%emt 0:04:28]} 56. Kc7 {[%emt 0:01:20]} Be6 {[%emt 0:00:37]} 57. Kb6 {[%emt 0:00:08]} Bc4 {[%emt 0:00:06]} 58. Nf5+ {[%emt 0:00:39]} Kf6 {[%emt 0:01:01]} 59. Ne3 {[%emt 0:00:05]} g3 {[%emt 0:01:14]} 60. Ng2 {[%emt 0:01:27]} Ke5 {[%emt 0:02:13]} 61. Kc5 {[%emt 0:00:10]} Bb5 {[%emt 0:01:15]} 62. Nh4 {[%emt 0:03:05]} Kf4 {[%emt 0:01:55]} 63. Ng2+ {[%emt 0:00:29]} Ke4 {[%emt 0:02:21]} 64. Nh4 {[%emt 0:00:32]} Bf1 {[%emt 0:00:59]} 65. Kb4 {[%emt 0:00:53]} Kf4 {[%emt 0:02:23]} 66. Ng6+ {[%emt 0:00:34]} Kf5 {[%emt 0:03:54]} 67. Ne7+ {[%emt 0:00:49]} Ke4 {[%emt 0:00:42]} 68. Ng8 {[%emt 0:01:58]} g2 0-1

[Event "IIFL Wealth 4th Mumbai GM"]
[Site "Mumbai"]
[Date "2019.01.05"]
[Round "7"]
[White "Dhungel, Uttam"]
[Black "Ahsan, Ali Jewel"]
[Result "1-0"]
[ECO "E21"]
[WhiteElo "1587"]
[BlackElo "1363"]
[Annotator "NA"]
[PlyCount "81"]
[EventDate "2018.12.30"]
[EventType "swiss"]
[EventCountry "IND"]
[SourceTitle "playchess.com"]
[Source "ChessBase"]
[SourceQuality "1"]
[TimeControl "40/5400+30:1800+30"]

1. d4 {[%emt 0:00:00]} Nf6 {[%emt 0:04:18]} 2. c4 {[%emt 0:00:00]} e6 {[%emt 0:00:15]} 3. Nc3 {[%emt 0:00:39]} b6 {[%emt 0:00:42]} 4. Nf3 {[%emt 0:01:03]} Bb7 {[%emt 0:00:42]} 5. Bg5 {[%emt 0:01:17]} Be7 {[%emt 0:00:23]} 6. e3 {[%emt 0:01:09]} h6 {[%emt 0:00:38]} 7. Bh4 {[%emt 0:00:17]} d5 {[%emt 0:02:39]} 8. Bd3 {[%emt 0:03:06]} Ne4 {[%emt 0:02:50]} 9. Bxe7 {[%emt 0:03:51]} Qxe7 {[%emt 0:00:34]} 10. O-O {[%emt 0:03:15]} Nxc3 {[%emt 0:04:26]} 11. bxc3 {[%emt 0:00:33]} dxc4 {[%emt 0:02:43]} 12. Bxc4 {[%emt 0:00:24]} Nd7 {[%emt 0:02:12]} 13. Re1 {[%emt 0:05:36]} O-O {[%emt 0:01:44]} 14. e4 {[%emt 0:14:44]} e5 {[%emt 0:09:15]} 15. Qc2 {[%emt 0:06:34]} exd4 {[%emt 0:08:56]} 16. cxd4 {[%emt 0:01:09]} Rfe8 {[%emt 0:01:48]} 17. Bd3 {[%emt 0:03:03]} Rac8 {[%emt 0:11:43]} 18. Rad1 {[%emt 0:03:20]} c5 {[%emt 0:07:18]} 19. d5 {[%emt 0:21:41]} Ne5 {[%emt 0:02:56]} 20. Nxe5 {[%emt 0:02:54]} Qxe5 {[%emt 0:00:18]} 21. Bb5 {[%emt 0:00:15]} Red8 {[%emt 0:01:09]} 22. g3 {[%emt 0:04:24]} g5 {[%emt 0:02:56]} 23. Qc4 {[%emt 0:04:35]} Rd6 {[%emt 0:05:50]} 24. Rf1 {[%emt 0:01:05]} a6 {[%emt 0:06:21]} 25. Bxa6 {[%emt 0:00:56]} Bxa6 {[%emt 0:02:07]} 26. Qxa6 {[%emt 0:00:12]} Re8 {[%emt 0:02:17]} 27. Rfe1 {[%emt 0:01:07]} Kg7 {[%emt 0:01:46]} 28. a4 {[%emt 0:02:04]} h5 {[%emt 0:01:43]} 29. a5 {[%emt 0:02:46]} bxa5 {[%emt 0:00:54]} 30. Qxa5 {[%emt 0:00:22]} c4 {[%emt 0:00:34]} 31. Re3 {[%emt 0:01:46]} Rc8 {[%emt 0:02:24]} 32. Rc1 {[%emt 0:01:05]} Kf6 {[%emt 0:01:59]} 33. Qc3 {[%emt 0:04:43]} Qxc3 {[%emt 0:04:46]} 34. Rexc3 {[%emt 0:00:36]} Ke5 {[%emt 0:00:19]} 35. Rxc4 {[%emt 0:02:46]} Rxc4 {[%emt 0:01:02]} 36. Rxc4 {[%emt 0:00:06]} f5 {[%emt 0:00:43]} 37. f3 {[%emt 0:02:17]} f4 {[%emt 0:01:15]} 38. Kf2 {[%emt 0:00:49]} h4 {[%emt 0:02:35]} 39. gxh4 {[%emt 0:00:43]} gxh4 {[%emt 0:00:08]} 40. Rc6 {[%emt 0:00:00]} Rd8 {[%emt 0:00:00]} 41. Rh6 {[%emt 0:00:47]} 1-0

[Event "IIFL Wealth 4th Mumbai GM"]
[Site "Mumbai"]
[Date "2019.01.05"]
[Round "7"]
[White "Wahba, David George"]
[Black "Kishor, Shazzad"]
[Result "0-1"]
[ECO "B06"]
[WhiteElo "1295"]
[BlackElo "1730"]
[Annotator "NA"]
[PlyCount "75"]
[EventDate "2018.12.30"]
[EventType "swiss"]
[EventCountry "IND"]
[SourceTitle "playchess.com"]
[Source "ChessBase"]
[SourceQuality "1"]
[TimeControl "40/5400+30:1800+30"]

1. e4 {[%emt 0:00:00]} g6 {[%emt 0:06:17]} 2. d4 {[%emt 0:04:13]} Bg7 {[%emt 0:00:03]} 3. Nf3 {[%emt 0:03:41]} c5 {[%emt 0:00:47]} 4. c3 {[%emt 0:07:40]} cxd4 {[%emt 0:00:14]} 5. cxd4 {[%emt 0:01:49]} d6 {[%emt 0:00:08]} 6. Nc3 {[%emt 0:02:19]} Nf6 {[%emt 0:00:04]} 7. Be2 {[%emt 0:03:42]} O-O {[%emt 0:00:14]} 8. O-O Nc6 {[%emt 0:02:37]} 9. Bf4 {[%emt 0:07:21]} a6 {[%emt 0:01:26]} 10. Qd2 {[%emt 0:02:09]} d5 {[%emt 0:10:44]} 11. e5 {[%emt 0:05:14]} Ne4 {[%emt 0:00:53]} 12. Qe3 Nxc3 13. bxc3 {[%emt 0:01:26]} Bg4 {[%emt 0:05:09]} 14. Bh6 {[%emt 0:04:37]} Na5 {[%emt 0:00:53]} 15. Bxg7 {[%emt 0:00:31]} Kxg7 {[%emt 0:00:03]} 16. Rab1 {[%emt 0:00:26]} b5 {[%emt 0:01:18]} 17. h3 {[%emt 0:01:05]} Bxf3 {[%emt 0:00:28]} 18. Qxf3 {[%emt 0:00:27]} Rc8 {[%emt 0:01:35]} 19. Rfc1 {[%emt 0:04:26]} e6 {[%emt 0:01:09]} 20. Qg3 {[%emt 0:02:13]} Nc4 {[%emt 0:01:08]} 21. Bxc4 {[%emt 0:00:17]} Rxc4 {[%emt 0:00:15]} 22. Rb4 {[%emt 0:00:08]} Qc7 {[%emt 0:01:04]} 23. Rxc4 {[%emt 0:00:31]} Qxc4 {[%emt 0:00:19]} 24. a3 {[%emt 0:00:21]} Qa2 {[%emt 0:01:16]} 25. Qf4 {[%emt 0:02:20]} Qxa3 {[%emt 0:00:44]} 26. Qf6+ {[%emt 0:00:10]} Kg8 {[%emt 0:00:05]} 27. Rc2 {[%emt 0:00:54]} Qb3 {[%emt 0:01:22]} 28. Rc1 {[%emt 0:00:25]} Qb2 {[%emt 0:00:49]} 29. Rf1 {[%emt 0:01:41]} Qxc3 {[%emt 0:05:49]} 30. h4 {[%emt 0:00:04]} Qd3 {[%emt 0:02:27]} 31. h5 {[%emt 0:00:17]} Qf5 {[%emt 0:01:08]} 32. hxg6 {[%emt 0:00:38]} Qxf6 {[%emt 0:01:48]} 33. gxh7+ {[%emt 0:00:10]} Kxh7 {[%emt 0:00:09]} 34. exf6 {[%emt 0:00:10]} Kg6 {[%emt 0:00:14]} 35. Ra1 {[%emt 0:00:07]} Ra8 {[%emt 0:00:11]} 36. f4 {[%emt 0:00:16]} Kxf6 {[%emt 0:00:08]} 37. g4 {[%emt 0:00:04]} b4 {[%emt 0:00:41]} 38. Kf2 {Ke5} 0-1

[Event "IIFL Wealth 4th Mumbai GM"]
[Site "Mumbai"]
[Date "2019.01.05"]
[Round "7"]
[White "Kafle, Binod"]
[Black "Chowdhury, Sohel"]
[Result "0-1"]
[ECO "B10"]
[WhiteElo "1191"]
[BlackElo "2012"]
[Annotator "NA"]
[PlyCount "80"]
[EventDate "2018.12.30"]
[EventType "swiss"]
[EventCountry "IND"]
[SourceTitle "playchess.com"]
[Source "ChessBase"]
[SourceQuality "1"]
[TimeControl "40/5400+30:1800+30"]

1. e4 c6 2. Bc4 d5 3. exd5 cxd5 4. Bb3 Nc6 5. d4 Nf6 6. Bg5 e6 7. Ne2 h6 8. Bxf6 Qxf6 9. O-O Bd6 10. Nbc3 a6 11. a3 O-O 12. Qd3 b5 13. Nd1 Na5 14. Ba2 Nc4 15. c3 Bb7 16. Bb1 g6 17. Bc2 Rac8 18. b3 Nxa3 19. Ne3 Nxc2 20. Qxc2 h5 21. f4 Rc7 22. Qd3 Rfc8 23. Rac1 Ba3 24. Rc2 Bf8 25. Rcc1 b4 26. c4 dxc4 27. Nxc4 Bd5 28. Nb6 Rxc1 29. Nxc1 Rc3 30. Nxd5 exd5 31. Qd2 Bg7 32. Ne2 Rxb3 33. Qc2 Re3 34. Qc8+ Kh7 35. Qc2 b3 36. Qd2 Rxe2 37. Qxe2 Qxd4+ 38. Kh1 b2 39. Qxa6 Qc4 40. Qxc4 dxc4 0-1